bitfinex/quotes_SOLUSD_20220306
["timestamp","ask_amount","ask_price","bid_price","bid_amount"]
[1646544852797,67.92,88.3,88.222,50.89082589]
[1646544853796,61.53015104,88.301,88.222,50.89082589]
[1646544853997,61.53015104,88.301,88.223,46.20830147]
[1646544854797,61.53015104,88.301,88.224,23.09040147]
[1646544859898,61.53015104,88.301,88.214,17.0901]
[1646544859899,67.92,88.296,88.214,17.0901]
[1646544860102,67.92,88.292,88.214,17.0901]
[1646544860304,84.9295,88.29,88.214,17.0901]
[1646544860698,93.5795,88.29,88.214,17.0901]
[1646544860898,137.0325,88.289,88.214,17.0901]
[1646544861598,67.92,88.28,88.206,22.6902]
[1646544861798,135.9328,88.279,88.206,22.6902]
[1646544862197,113.1,88.261,88.194,16.9578]
[1646544862398,113.1,88.259,88.194,16.9578]
[1646544862801,113.1,88.257,88.194,16.9578]
[1646544863199,59.34852852,88.258,88.194,16.9578]
[1646544863599,113.1,88.257,88.194,16.9578]
[1646544863802,113.1,88.257,88.183,50.68850906]
[1646544864001,135.9328,88.257,88.183,50.68850906]
[1646544864199,22.8328,88.257,88.183,50.68850906]
[1646544864701,113.1,88.256,88.183,50.68850906]
[1646544865499,181.02,88.25,88.172,23.4697]
[1646544865700,181.02,88.25,88.153,23.92731275]
[1646544865900,181.02,88.25,88.153,40.86741275]
[1646544866100,197.38,88.25,88.153,40.86741275]
[1646544866300,1.93286249,88.249,88.153,16.9401]
[1646544866500,1.93286249,88.249,88.154,50.66948776]
[1646544868506,16.36,88.25,88.154,53.50562302]
[1646544868702,16.36,88.25,88.155,23.92731275]
[1646544868902,24.9358,88.256,88.156,113.1]
[1646544869105,24.9358,88.256,88.161,169.74]
[1646544869304,24.9358,88.256,88.163,169.74]
[1646544869907,24.9358,88.256,88.165,169.74]
[1646544870106,24.9358,88.256,88.181,113.1]
[1646544870305,24.9358,88.256,88.183,113.1]
[1646544870507,1.54500315,88.301,88.183,113.1]
[1646544870705,1.54500315,88.303,88.185,113.1]
[1646544870905,1.54500315,88.301,88.191,56.64]
[1646544871104,131.36651261,88.3,88.193,56.64]
[1646544871306,177.35361261,88.3,88.194,104.91]
[1646544871705,177.35361261,88.3,88.194,107.74613526]
[1646544871910,109.43361261,88.3,88.195,115.93613526]
[1646544872105,109.43361261,88.3,88.2,17.0018]
[1646544872605,109.43361261,88.3,88.2,19.83793526]
[1646544872805,109.43361261,88.3,88.203,56.64]
[1646544873207,109.43361261,88.3,88.205,56.64]
[1646544873606,109.43361261,88.3,88.206,2.83613526]
[1646544874107,110.97861576,88.3,88.211,56.64]
[1646544874507,133.54767224,88.3,88.211,56.64]
[1646544875712,132.00266909,88.3,88.211,56.64]
[1646544876913,1.54500315,88.298,88.211,56.64]
[1646544877315,1.54500315,88.295,88.211,56.64]
[1646544877614,1.54500315,88.296,88.211,56.64]
[1646544878015,1.54500315,88.296,88.221,48.80368668]
[1646544878221,1.54500315,88.297,88.221,48.80368668]
[1646544878715,1.54500315,88.297,88.222,24.9883]
[1646544878915,1.54500315,88.296,88.222,24.9883]
[1646544879315,1.54500315,88.295,88.222,24.9883]
[1646544879716,1.54500315,88.296,88.222,24.9883]
[1646544881636,1.54500315,88.297,88.23,17.0]
[1646544881836,63.44651261,88.3,88.23,39.46]
[1646544882038,63.44651261,88.3,88.231,2.83613526]
[1646544882336,1.54500315,88.31,88.231,2.83613526]
[1646544882537,1.54500315,88.31,88.232,24.3512]
[1646544882838,1.54500315,88.31,88.233,56.64]
[1646544883036,1.54500315,88.312,88.233,59.47613526]
[1646544883236,50.56140781,88.311,88.234,2.83613526]
[1646544883440,52.10641096,88.311,88.234,2.83613526]
[1646544883638,1.54500315,88.309,88.234,2.83613526]
[1646544884039,1.54500315,88.31,88.234,2.83613526]
[1646544884241,1.54500315,88.31,88.251,61.38641356]
[1646544884639,52.10641096,88.311,88.251,61.38641356]
[1646544884941,50.56140781,88.311,88.251,61.38641356]
[1646544885142,50.56140781,88.311,88.252,22.8568]
[1646544885341,52.10641096,88.311,88.252,22.8568]
[1646544885541,50.56140781,88.311,88.252,22.8568]
[1646544886046,52.10641096,88.311,88.252,22.8568]
[1646544886843,50.56140781,88.311,88.252,22.8568]
[1646544887042,1.54500315,88.309,88.252,22.8568]
[1646544887447,1.54500315,88.31,88.252,22.8568]
[1646544888845,50.56140781,88.311,88.252,22.8568]
[1646544888846,52.10641096,88.311,88.252,22.8568]
[1646544889347,1.54500315,88.31,88.252,22.8568]
[1646544889547,52.10641096,88.311,88.252,22.8568]
[1646544889949,1.54500315,88.307,88.252,22.8568]
[1646544890149,1.54500315,88.306,88.252,22.8568]
[1646544890350,1.54500315,88.305,88.252,22.8568]
[1646544890552,1.54500315,88.305,88.223,59.36918863]
[1646544890752,1.54500315,88.3,88.223,83.72468863]
[1646544890950,1.54500315,88.295,88.223,24.3555]
[1646544891160,1.54500315,88.291,88.223,24.3555]
[1646544891557,1.54500315,88.292,88.223,24.3555]
[1646544892051,1.54500315,88.294,88.224,46.16122257]
[1646544892550,1.54500315,88.297,88.224,46.16122257]
[1646544892949,1.54500315,88.298,88.224,46.16122257]
[1646544893551,25.91480315,88.299,88.224,46.16122257]
[1646544894154,24.3698,88.299,88.224,46.16122257]
[1646544894353,25.91480315,88.299,88.224,46.16122257]
[1646544894553,24.3698,88.299,88.224,46.16122257]
[1646544894754,1.54500315,88.298,88.224,46.16122257]
[1646544895353,25.91480315,88.299,88.224,46.16122257]
[1646544895554,24.3698,88.299,88.224,46.16122257]
[1646544895854,25.91480315,88.299,88.224,46.16122257]
[1646544896054,1.54500315,88.298,88.224,46.16122257]
[1646544896658,1.54500315,88.295,88.224,46.16122257]
[1646544896858,1.54500315,88.294,88.224,46.16122257]
[1646544898157,1.54500315,88.296,88.23,17.0002]
[1646544898557,24.3698,88.299,88.23,17.0002]
[1646544898958,1.54500315,88.294,88.231,59.47613526]
[1646544899358,1.54500315,88.295,88.232,2.83613526]
[1646544899958,24.3698,88.299,88.232,2.83613526]
[1646544899959,1.54500315,88.296,88.234,56.64]
[1646544900160,1.54500315,88.296,88.235,113.1]
[1646544900363,1.54500315,88.298,88.24,16.9983]
[1646544900561,1.54500315,88.297,88.24,16.9983]
[1646544900759,1.54500315,88.295,88.24,16.9983]
[1646544900960,1.54500315,88.295,88.241,2.83613526]
[1646544901961,1.54500315,88.296,88.241,2.83613526]
[1646544902161,1.54500315,88.295,88.241,2.83613526]
[1646544902563,1.54500315,88.294,88.241,2.83613526]
[1646544902964,1.54500315,88.293,88.24,16.9983]
[1646544903265,1.54500315,88.293,88.234,56.64]
[1646544903467,1.54500315,88.289,88.234,56.64]
[1646544903666,1.54500315,88.287,88.234,56.64]
[1646544903869,1.54500315,88.288,88.234,56.64]
[1646544905268,1.54500315,88.287,88.234,56.64]
[1646544905767,1.54500315,88.288,88.234,56.64]
[1646544906569,1.54500315,88.289,88.234,56.64]
[1646544906969,1.54500315,88.288,88.234,56.64]
[1646544908271,1.54500315,88.289,88.234,56.64]
[1646544908771,1.54500315,88.288,88.234,56.64]
[1646544909783,1.54500315,88.289,88.234,56.64]
[1646544910172,1.54500315,88.292,88.234,56.64]
[1646544910675,1.54500315,88.291,88.234,56.64]
[1646544911072,1.54500315,88.291,88.235,2.83613526]
[1646544911271,1.54500315,88.292,88.235,2.83613526]
[1646544911674,1.54500315,88.291,88.235,2.83613526]
[1646544914874,1.54500315,88.29,88.235,2.83613526]
[1646544915374,1.54500315,88.291,88.235,2.83613526]
[1646544915978,1.54500315,88.29,88.235,2.83613526]
[1646544916678,1.54500315,88.289,88.235,2.83613526]
[1646544918178,1.54500315,88.288,88.235,2.83613526]
[1646544918976,1.54500315,88.289,88.235,2.83613526]
[1646544919180,1.51063375,88.289,88.235,2.83613526]
[1646544919378,6.19647338,88.31,88.235,2.83613526]
[1646544919779,6.19647338,88.31,88.233,24.7654]
[1646544919978,3.08193139,88.304,88.233,24.7654]
[1646544920378,3.08193139,88.303,88.233,24.7654]
[1646544920580,9.27840477,88.303,88.233,24.7654]
[1646544920777,3.08193139,88.303,88.233,24.7654]
[1646544921182,3.08193139,88.302,88.233,24.7654]
[1646544921378,3.08193139,88.303,88.233,24.7654]
[1646544922200,23.6174,88.302,88.233,24.7654]
[1646544922601,6.19647338,88.301,88.233,24.7654]
[1646544925201,67.92,88.3,88.233,24.7654]
[1646544925402,6.19647338,88.299,88.233,24.7654]
[1646544925802,8.64,88.301,88.233,24.7654]
[1646544925803,6.19647338,88.298,88.233,24.7654]
[1646544926002,6.19647338,88.3,88.233,24.7654]
[1646544926403,6.19647338,88.301,88.233,24.7654]
[1646544926603,6.19647338,88.299,88.233,24.7654]
[1646544926802,9.27840477,88.301,88.233,24.7654]
[1646544927207,6.19647338,88.301,88.233,24.7654]
[1646544932011,6.19647338,88.301,88.234,5.664]
[1646544933511,6.19647338,88.301,88.233,24.7654]
[1646544935816,8.12933587,88.301,88.233,24.7654]
[1646544936114,22.55647338,88.3,88.233,24.7654]
[1646544936314,6.19647338,88.299,88.233,24.7654]
[1646544939116,9.27840477,88.299,88.233,24.7654]
[1646544939316,6.19647338,88.299,88.233,24.7654]
[1646544939920,9.27840477,88.299,88.233,24.7654]
[1646544941320,25.93760477,88.299,88.233,24.7654]
[1646544941520,6.19647338,88.298,88.233,24.7654]
[1646544942422,9.27840477,88.299,88.233,24.7654]
[1646544943724,6.19647338,88.299,88.233,24.7654]
[1646544944620,113.1,88.298,88.233,24.7654]
[1646544944824,6.19647338,88.297,88.233,24.7654]
[1646544945027,9.27840477,88.299,88.233,24.7654]
[1646544945820,6.19647338,88.299,88.233,24.7654]
[1646544946021,6.19647338,88.299,88.234,5.664]
[1646544947321,52.888356,88.299,88.234,5.664]
[1646544947624,6.19647338,88.298,88.234,5.664]
[1646544948320,3.08193139,88.297,88.234,5.664]
[1646544948521,9.27840477,88.298,88.234,5.664]
[1646544948720,3.08193139,88.297,88.234,5.664]
[1646544948923,9.27840477,88.298,88.234,5.664]
[1646544949121,3.08193139,88.297,88.234,5.664]
[1646544949622,9.27840477,88.298,88.234,5.664]
[1646544950522,3.08193139,88.297,88.234,5.664]
[1646544952227,3.08193139,88.297,88.233,24.7654]
[1646544952626,3.08193139,88.296,88.233,24.7654]
[1646544953226,6.19647338,88.295,88.233,24.7654]
[1646544953427,3.08193139,88.296,88.233,24.7654]
[1646544955027,3.08193139,88.297,88.233,24.7654]
[1646544955728,6.19647338,88.298,88.234,5.664]
[1646544955951,3.08193139,88.299,88.234,5.664]
[1646544956128,6.19647338,88.297,88.234,5.664]
[1646544956328,3.08193139,88.299,88.234,5.664]
[1646544956529,9.27840477,88.3,88.234,5.664]
[1646544957933,6.19647338,88.3,88.234,5.664]
[1646544958333,9.27840477,88.3,88.234,5.664]
[1646544958540,6.19647338,88.3,88.234,5.664]
[1646544959034,9.27840477,88.3,88.234,5.664]
[1646544959235,3.08193139,88.299,88.234,5.664]
[1646544959434,9.27840477,88.3,88.234,5.664]
[1646544960235,3.08193139,88.299,88.234,5.664]
[1646544960439,3.08193139,88.298,88.234,5.664]
[1646544960638,3.08193139,88.299,88.234,5.664]
[1646544961237,3.08193139,88.298,88.234,5.664]
[1646544961637,3.08193139,88.297,88.234,5.664]
[1646544962037,3.08193139,88.298,88.234,5.664]
[1646544962437,3.08193139,88.296,88.234,5.664]
[1646544962839,3.08193139,88.293,88.233,24.7654]
[1646544963042,22.7401,88.292,88.233,24.7654]
[1646544963237,6.19647338,88.291,88.233,24.7654]
[1646544965764,6.19647338,88.291,88.234,5.664]
[1646544968465,9.27840477,88.291,88.234,5.664]
[1646544968969,3.08193139,88.29,88.234,5.664]
[1646544969666,9.27840477,88.291,88.234,5.664]
[1646544969866,6.19647338,88.289,88.234,5.664]
[1646544970067,6.19647338,88.29,88.234,5.664]
[1646544970266,6.19647338,88.291,88.234,5.664]
[1646544983183,22.7401,88.292,88.234,5.664]
[1646544984580,5.01479388,88.301,88.234,5.664]
[1646544984781,3.08193139,88.305,88.234,5.664]
[1646544984982,9.27882326,88.306,88.234,5.664]
[1646544985182,6.19689187,88.306,88.234,5.664]
[1646544985585,6.19689187,88.306,88.236,56.64]
[1646544985784,22.523,88.307,88.241,56.64]
[1646544985985,22.523,88.307,88.243,56.64]
[1646544986289,22.523,88.307,88.244,80.8313]
[1646544987687,22.523,88.307,88.245,5.664]
[1646544988891,22.523,88.307,88.244,80.8313]
[1646544992407,22.523,88.307,88.245,5.664]
[1646544996515,22.523,88.307,88.244,24.1913]
[1646544996712,28.76649056,88.306,88.244,24.1913]
[1646544996913,6.19743408,88.305,88.244,24.1913]
[1646544998116,67.92,88.304,88.218,5.664]
[1646544998313,84.28,88.3,88.223,24.3829]
[1646544998513,6.19743408,88.299,88.223,24.3829]
[1646544998712,6.60184843,88.298,88.223,24.3829]
[1646544999117,113.1,88.296,88.223,24.3829]
[1646544999315,113.1,88.294,88.223,24.3829]
[1646544999514,113.1,88.292,88.223,24.3829]
[1646544999915,22.9394,88.293,88.223,24.3829]
[1646545000515,113.1,88.292,88.223,24.3829]
[1646545001619,22.9394,88.293,88.223,30.0479]
[1646545003721,119.29822597,88.292,88.223,30.0479]
[1646545004019,22.9394,88.293,88.223,24.3829]
[1646545004221,6.1982314,88.292,88.223,24.3829]
[1646545004619,22.9394,88.293,88.223,24.3829]
[1646545005220,113.1,88.288,88.202,17.396]
[1646545005424,67.92,88.281,88.203,24.5663]
[1646545005621,91.0144,88.28,88.204,5.666]
[1646545005821,113.1,88.279,88.204,5.666]
[1646545006321,17.0124,88.27,88.204,5.666]
[1646545006520,23.0944,88.269,88.204,5.666]
[1646545008924,32.2644,88.269,88.204,5.666]
[1646545009124,32.2644,88.269,88.203,24.5663]
[1646545009327,113.1,88.268,88.203,24.5663]
[1646545010126,17.0151,88.26,88.203,24.5663]
[1646545010524,113.1,88.268,88.203,24.5663]
[1646545010725,23.5105,88.259,88.19,5.666]
[1646545011526,23.5105,88.259,88.191,23.1675]
[1646545011727,23.5105,88.259,88.192,5.667]
[1646545012325,23.5105,88.259,88.191,23.1675]
[1646545019335,30.1705,88.259,88.191,23.1675]
[1646545020936,23.5105,88.259,88.191,23.1675]
[1646545026564,181.02,88.258,88.182,23.1918]
[1646545026764,181.02,88.256,88.182,23.1918]
[1646545028269,47.83351949,88.259,88.182,23.1918]
[1646545031970,6.20055485,88.258,88.182,23.1918]
[1646545032374,67.92,88.252,88.182,23.1918]
[1646545032575,24.32301949,88.258,88.182,23.1918]
[1646545033273,6.20052751,88.257,88.182,23.1918]
[1646545033473,23.5105,88.259,88.182,23.1918]
[1646545034075,23.5105,88.259,88.19,17.0079]
[1646545034477,23.5105,88.259,88.182,23.1918]
[1646545036478,6.20008961,88.258,88.182,23.1918]
[1646545038581,23.5105,88.259,88.182,23.1918]
[1646545039183,6.19989623,88.258,88.182,23.1918]
[1646545039382,1.54687344,88.24,88.182,23.1918]
[1646545039681,49.60310838,88.239,88.182,23.1918]
[1646545039882,23.5904,88.238,88.182,23.1918]
[1646545040085,25.13727344,88.238,88.182,23.1918]
[1646545040484,23.5904,88.238,88.182,23.1918]
[1646545040684,25.13727344,88.238,88.182,23.1918]
[1646545040884,23.5904,88.238,88.182,23.1918]
[1646545041286,25.13727344,88.238,88.182,23.1918]
[1646545041583,23.5904,88.238,88.182,23.1918]
[1646545041989,1.54687344,88.238,88.182,23.1918]
[1646545042184,1.54687344,88.248,88.191,56.64]
[1646545042390,1.54687344,88.248,88.183,115.93613526]
[1646545042391,1.54687344,88.248,88.2,16.36]
[1646545042588,6.19883227,88.286,88.2,16.36]
[1646545042589,1.54687344,88.253,88.2,16.36]
[1646545042985,59.92342621,88.252,88.2,16.36]
[1646545043384,59.92342621,88.252,88.201,5.667]
[1646545043787,59.92342621,88.252,88.202,23.7362]
[1646545043986,59.92342621,88.252,88.203,5.667]
[1646545044188,1.54687344,88.259,88.203,5.667]
[1646545044387,1.54687344,88.264,88.204,115.93613526]
[1646545044587,1.54687344,88.265,88.205,118.766]
[1646545044787,1.54687344,88.266,88.205,8.50213526]
[1646545044989,1.54687344,88.267,88.205,8.50213526]
[1646545045190,59.10531003,88.266,88.206,59.15474533]
[1646545045388,59.10531003,88.266,88.21,16.36]
[1646545045587,59.10531003,88.266,88.211,5.666]
[1646545046489,59.10531003,88.266,88.212,23.9491]
[1646545046689,59.10531003,88.266,88.213,5.666]
[1646545047693,59.10531003,88.266,88.212,23.9491]
[1646545048292,59.10531003,88.266,88.213,56.64]
[1646545050717,59.10531003,88.266,88.214,5.666]
[1646545052618,59.10531003,88.266,88.213,56.64]
[1646545053019,59.10531003,88.266,88.212,23.9491]
[1646545053420,60.65218347,88.266,88.212,23.9491]
[1646545053620,1.54687344,88.265,88.212,23.9491]
[1646545054124,1.54687344,88.264,88.212,23.9491]
[1646545054325,59.10531003,88.266,88.212,23.9491]
[1646545054326,1.54687344,88.263,88.212,23.9491]
[1646545054523,1.54687344,88.264,88.212,23.9491]
[1646545054921,1.54687344,88.263,88.212,23.9491]
[1646545055323,1.54687344,88.262,88.212,23.9491]
[1646545055921,1.54687344,88.263,88.212,23.9491]
[1646545056122,1.54687344,88.262,88.212,23.9491]
[1646545056522,1.54687344,88.263,88.212,23.9491]
[1646545056723,1.54687344,88.262,88.212,23.9491]
[1646545058325,1.54687344,88.261,88.212,23.9491]
[1646545058925,1.54687344,88.26,88.212,23.9491]
[1646545059127,1.54687344,88.261,88.212,23.9491]
[1646545059727,1.54687344,88.257,88.212,23.9491]
[1646545060126,1.54687344,88.255,88.212,23.9491]
[1646545060327,1.54687344,88.256,88.212,23.9491]
[1646545060531,1.54687344,88.255,88.212,23.9491]
[1646545061330,1.54687344,88.254,88.212,23.9491]
[1646545061529,1.54687344,88.255,88.212,23.9491]
[1646545062133,1.54687344,88.263,88.212,23.9491]
[1646545062732,1.54687344,88.259,88.212,23.9491]
[1646545062931,1.54687344,88.261,88.212,23.9491]
[1646545063133,1.54687344,88.263,88.212,23.9491]
[1646545063530,1.54687344,88.262,88.212,23.9491]
[1646545063935,1.54687344,88.263,88.212,23.9491]
[1646545064532,1.54687344,88.264,88.212,23.9491]
[1646545064934,60.65218347,88.266,88.212,23.9491]
[1646545065132,59.10531003,88.266,88.213,57.19393992]
[1646545069239,59.10531003,88.266,88.212,23.9491]
[1646545071042,1.54687344,88.26,88.212,23.9491]
[1646545071244,1.54687344,88.261,88.212,23.9491]
[1646545071843,1.54687344,88.26,88.212,23.9491]
[1646545072043,1.54687344,88.259,88.212,23.9491]
[1646545072444,1.54687344,88.257,88.212,23.9491]
[1646545072643,1.54687344,88.258,88.212,23.9491]
[1646545072846,1.54687344,88.257,88.212,23.9491]
[1646545073044,1.54687344,88.258,88.212,23.9491]
[1646545073243,1.54687344,88.255,88.212,23.9491]
[1646545073645,23.0279,88.265,77.988,0.03812]
[1646545073646,1.54687344,88.254,88.17,16.36]
[1646545073845,1.54687344,88.242,88.181,23.5425]
[1646545074046,1.54687344,88.239,88.181,23.5425]
[1646545074445,57.75748438,88.238,88.181,23.5425]
[1646545074846,1.54687344,88.236,88.161,23.8447]
[1646545075047,57.75748438,88.238,88.162,23.5425]
[1646545075048,1.54687344,88.232,88.162,23.5425]
[1646545075745,1.54687344,88.232,88.162,71.82566624]
[1646545076267,1.54687344,88.235,88.162,71.82566624]
[1646545076869,1.54687344,88.236,88.162,71.82566624]
[1646545077069,1.54687344,88.235,88.162,71.82566624]
[1646545077276,1.54687344,88.236,88.162,71.82566624]
[1646545077769,1.54687344,88.235,88.162,71.82566624]
[1646545078369,59.30435782,88.238,88.162,71.82566624]
[1646545078578,1.54687344,88.237,88.162,71.82566624]
[1646545078772,59.30435782,88.238,88.162,71.82566624]
[1646545079869,1.54687344,88.237,88.162,71.82566624]
[1646545080270,59.30435782,88.238,88.162,71.82566624]
[1646545081275,57.75748438,88.238,88.162,71.82566624]
[1646545081473,59.30435782,88.238,88.162,71.82566624]
[1646545082372,57.75748438,88.238,88.162,71.82566624]
[1646545083472,57.75748438,88.238,88.163,2.83613526]
[1646545083873,57.75748438,88.238,88.164,22.51212084]
[1646545084275,57.75748438,88.238,88.17,17.0116]
[1646545084474,57.75748438,88.238,88.17,33.3716]
[1646545084673,57.75748438,88.238,88.171,2.83613526]
[1646545084873,57.75748438,88.238,88.172,24.4312]
[1646545090782,1.54687344,88.252,88.18,17.0099]
[1646545090980,1.54687344,88.265,88.19,16.36]
[1646545091181,1.54687344,88.265,88.191,23.5452]
[1646545091386,24.777,88.268,88.191,23.5452]
[1646545091781,46.80234243,88.267,88.192,50.31224306]
[1646545092180,46.80234243,88.267,88.2,17.0051]
[1646545092680,46.80234243,88.267,88.201,23.7776]
[1646545094281,46.80234243,88.267,88.21,17.004]
[1646545094482,46.80234243,88.267,88.211,23.7776]
[1646545094684,46.80234243,88.267,88.212,56.64]
[1646545095582,1.54687344,88.28,88.213,113.1]
[1646545095785,1.54687344,88.28,88.22,17.0019]
[1646545095984,23.1047,88.288,88.22,33.3619]
[1646545096182,23.1047,88.288,88.221,23.2232]
[1646545096384,1.54687344,88.29,88.221,23.2232]
[1646545096586,46.23045416,88.289,88.222,53.88897774]
[1646545100486,46.23045416,88.289,88.23,17.0002]
[1646545100689,1.54687344,88.305,88.233,113.1]
[1646545100887,1.54687344,88.305,88.23,33.3602]
[1646545100888,1.54687344,88.305,88.234,80.2987]
[1646545101089,1.54687344,88.304,88.234,80.2987]
[1646545101692,55.75391675,88.303,88.234,80.2987]
[1646545101891,55.75391675,88.303,88.24,16.9977]
[1646545107300,55.75391675,88.303,88.234,80.2987]
[1646545107502,23.0559,88.302,88.234,80.2987]
[1646545107900,24.60277344,88.302,88.234,80.2987]
[1646545108301,1.54687344,88.3,88.234,80.2987]
[1646545108700,1.54687344,88.296,88.234,80.2987]
[1646545108999,1.54687344,88.294,88.234,80.2987]
[1646545109203,1.54687344,88.293,88.234,80.2987]
[1646545109400,23.0559,88.302,88.234,80.2987]
[1646545109401,1.54687344,88.292,88.234,80.2987]
[1646545109720,1.54687344,88.29,88.234,23.6587]
[1646545109921,1.54687344,88.289,88.234,23.6587]
[1646545110121,23.0559,88.302,88.234,23.6587]
[1646545110122,1.54687344,88.286,88.234,23.6587]
[1646545111522,1.54687344,88.285,88.234,23.6587]
[1646545113825,1.54687344,88.284,88.234,23.6587]
[1646545114426,1.54687344,88.278,88.234,23.6587]
[1646545115228,6.198445,88.301,88.234,23.6587]
[1646545115229,47.73714824,88.276,88.234,23.6587]
[1646545117131,49.28402168,88.276,88.234,23.6587]
[1646545117732,1.54687344,88.273,88.234,23.6587]
[1646545118230,1.54687344,88.274,88.234,23.6587]
[1646545118429,1.54687344,88.273,88.234,23.6587]
[1646545119230,1.54687344,88.274,88.234,23.6587]
[1646545119433,47.73714824,88.276,88.234,23.6587]
[1646545123331,1.54687344,88.279,88.234,23.6587]
[1646545123532,1.54687344,88.278,88.234,23.6587]
[1646545124337,64.24192308,88.277,88.234,23.6587]
[1646545132545,64.24192308,88.277,88.235,2.83613526]
[1646545132946,64.24192308,88.277,88.235,56.64]
[1646545133445,64.24192308,88.277,88.234,23.6587]
[1646545136148,65.78879652,88.277,88.234,23.6587]
[1646545136348,1.54687344,88.276,88.234,23.6587]
[1646545136748,1.54687344,88.275,88.234,23.6587]
[1646545137048,1.54687344,88.273,88.234,23.6587]
[1646545137248,1.54687344,88.272,88.234,23.6587]
[1646545137648,1.54687344,88.271,88.234,23.6587]
[1646545137849,1.54687344,88.271,88.201,56.64]
[1646545138055,1.54687344,88.271,88.19,24.0624]
[1646545138056,1.54687344,88.258,88.207,2.83613526]
[1646545138250,1.54687344,88.26,88.207,2.83613526]
[1646545138450,1.54687344,88.264,88.208,47.63297054]
[1646545138651,1.54687344,88.267,88.21,16.36]
[1646545138852,1.54687344,88.271,88.211,56.64]
[1646545139053,1.54687344,88.271,88.213,56.64]
[1646545139253,1.54687344,88.272,88.22,17.0023]
[1646545139454,1.54687344,88.273,88.22,17.0023]
[1646545139656,1.54687344,88.275,88.22,33.3623]
[1646545139955,1.54687344,88.274,88.22,33.3623]
[1646545140157,1.54687344,88.275,88.22,33.3623]
[1646545140564,24.32301949,88.309,88.22,33.3623]
[1646545140565,1.54687344,88.278,88.231,113.1]
[1646545140758,1.54687344,88.295,88.241,113.1]
[1646545140960,1.54687344,88.3,88.242,169.74]
[1646545141158,1.54687344,88.3,88.244,56.64]
[1646545141358,1.54687344,88.3,88.251,113.1]
[1646545141558,64.38933619,88.299,88.26,16.36]
[1646545141758,64.38933619,88.299,88.261,23.0824]
[1646545142358,1.54687344,88.307,88.261,23.0824]
[1646545142559,1.54687344,88.308,88.261,23.0824]
[1646545142761,1.54687344,88.309,88.261,23.0824]
[1646545143477,45.80874394,88.308,88.261,23.0824]
[1646545145481,45.80874394,88.308,88.24,16.36]
[1646545145482,1.54687344,88.306,88.24,16.36]
[1646545145683,1.54687344,88.293,88.241,23.2218]
[1646545145885,1.54687344,88.292,88.241,23.2218]
[1646545146383,1.54687344,88.291,88.241,23.2218]
[1646545147082,1.54687344,88.29,88.241,23.2218]
[1646545147483,1.54687344,88.283,88.234,56.64]
[1646545147683,1.54687344,88.275,88.206,29.7895]
[1646545147883,7.58,88.29,88.206,24.1245]
[1646545147884,1.54687344,88.272,88.206,24.1245]
[1646545148084,1.54687344,88.272,88.207,5.666]
[1646545148282,1.54687344,88.273,88.207,5.666]
[1646545148486,49.94587189,88.272,88.208,63.22681808]
[1646545148683,24.79567344,88.271,88.209,5.666]
[1646545148883,23.2488,88.271,88.209,5.666]
[1646545149485,23.2488,88.271,88.234,308.625391]
[1646545149684,48.39899845,88.272,88.235,5.665]
[1646545150787,48.39899845,88.272,88.234,308.625391]
[1646545151586,49.94587189,88.272,88.234,308.625391]
[1646545152487,1.54687344,88.27,88.234,308.625391]
[1646545152687,1.54687344,88.271,88.234,308.625391]
[1646545153689,49.94587189,88.272,88.234,308.625391]
[1646545153888,1.54687344,88.271,88.234,308.625391]
[1646545154388,48.39899845,88.272,88.234,308.625391]
[1646545157294,48.39899845,88.272,88.235,50.90193471]
[1646545157693,48.39899845,88.272,88.234,308.625391]
[1646545172306,49.94587189,88.272,88.234,308.625391]
[1646545173008,48.39899845,88.272,88.234,308.625391]
[1646545174014,1.54687344,88.268,88.234,308.625391]
[1646545174413,1.54687344,88.261,88.234,308.625391]
[1646545175011,1.54687344,88.262,88.234,308.625391]
[1646545175512,1.54687344,88.263,88.234,308.625391]
[1646545176312,1.54687344,88.258,88.234,308.625391]